bitfinex/quotes_SOLUSD_20260306
["timestamp","ask_amount","ask_price","bid_price","bid_amount"]
[1772815512742,0.1,84.74,84.689,0.47667265]
[1772815513038,0.49741504,84.719,84.679,29.52325842]
[1772815513243,0.49741504,84.719,84.675,0.47667265]
[1772815513445,0.49741504,84.709,84.675,0.47667265]
[1772815514319,0.49741504,84.709,84.651,3.69383402]
[1772815514320,0.1,84.699,84.676,11.30972176]
[1772815514526,0.1,84.699,84.664,11.81139563]
[1772815514822,0.1,84.699,84.665,0.5]
[1772815516039,11.80651483,84.699,84.667,0.5]
[1772815516938,11.80651483,84.699,84.666,11.81111662]
[1772815517325,41.32280191,84.699,84.666,11.81111662]
[1772815517642,12.23021232,84.719,84.667,0.5]
[1772815517874,41.73973937,84.719,84.667,0.5]
[1772815518442,4.38450365,84.71,84.668,11.81083762]
[1772815518622,4.38450365,84.71,84.669,0.5]
[1772815519634,41.31325466,84.719,84.669,0.5]
[1772815520138,4.38450365,84.71,84.669,0.5]
[1772815520651,11.80512106,84.709,84.671,0.5]
[1772815520946,41.31792371,84.709,84.671,0.5]
[1772815523051,41.31792371,84.709,84.672,11.81027966]
[1772815524337,47.2070442,84.734,84.672,11.81027966]
[1772815524338,11.80458534,84.713,84.673,0.5]
[1772815525145,11.80458534,84.713,84.672,41.33597882]
[1772815525146,0.42648471,84.726,84.675,0.5]
[1772815525752,11.80261309,84.727,84.675,0.5]
[1772815525753,41.30914583,84.727,84.675,0.5]
[1772815526140,4.38450365,84.72,84.675,0.5]
[1772815526451,4.38450365,84.71,84.675,0.5]
[1772815528439,41.31792371,84.709,84.67,11.8105369]
[1772815528953,41.31792371,84.709,84.671,0.5]
[1772815530540,41.31792371,84.709,84.673,0.5]
[1772815530746,11.80512106,84.709,84.673,0.5]
[1772815531337,11.80400627,84.717,84.673,0.5]
[1772815531761,41.31402196,84.717,84.673,0.5]
[1772815533353,11.80400627,84.717,84.675,0.5]
[1772815533965,11.8027524,84.726,84.675,0.5]
[1772815535032,4.38450365,84.71,84.675,0.5]
[1772815535241,11.80512106,84.709,84.675,0.5]
[1772815535555,11.80512106,84.709,84.677,0.5]
[1772815537464,11.80512106,84.709,84.676,41.33402616]
[1772815537465,0.14216157,84.723,84.679,0.5]
[1772815537848,4.38450365,84.72,84.679,0.5]
[1772815538170,4.38450365,84.71,84.679,0.5]
[1772815538663,4.38450365,84.71,84.672,12.31019168]
[1772815538846,4.38450365,84.7,84.672,12.31019168]
[1772815539043,4.38450365,84.7,84.664,0.5]
[1772815539246,3.69383402,84.719,84.644,2.64486013]
[1772815539247,4.38450365,84.69,84.657,0.5]
[1772815539447,41.32768127,84.689,84.657,0.5]
[1772815539864,41.32768127,84.689,84.644,2.64486013]
[1772815539865,4.38450365,84.68,84.644,2.64486013]
[1772815540041,4.38450365,84.68,84.648,0.5]
[1772815540450,41.32768127,84.689,84.648,0.5]
[1772815541562,41.32768127,84.689,84.65,0.5]
[1772815541762,41.32768127,84.689,84.645,29.53511725]
[1772815541763,4.38450365,84.68,84.645,0.5]
[1772815542144,4.38450365,84.68,84.646,0.5]
[1772815542351,41.32768127,84.689,84.646,0.5]
[1772815542661,4.38450365,84.68,84.646,0.5]
[1772815543870,41.33256178,84.679,84.646,0.5]
[1772815544045,4.38450365,84.66,84.624,0.5]
[1772815544563,4.38450365,84.67,84.626,0.5]
[1772815544766,0.42648471,84.678,84.626,0.5]
[1772815544970,4.38450365,84.67,84.626,0.5]
[1772815546767,11.81069813,84.669,84.628,0.5]
[1772815548579,41.33744345,84.669,84.628,0.5]
[1772815548963,41.33744345,84.669,84.63,0.5]
[1772815550165,41.33744345,84.669,84.632,0.5]
[1772815551058,11.81069813,84.669,84.632,0.5]
[1772815552051,47.2062023,84.735,84.634,0.5]
[1772815552255,4.38450365,84.69,84.634,0.5]
[1772815552593,4.38450365,84.7,84.637,0.14216157]
[1772815552762,4.38450365,84.69,84.638,0.5]
[1772815553678,4.38450365,84.7,84.638,0.5]
[1772815554864,11.80651483,84.699,84.641,0.5]
[1772815555413,41.32280191,84.699,84.641,0.5]
[1772815557070,4.38450365,84.68,84.642,41.3506297]
[1772815557260,4.38450365,84.68,84.643,0.5]
[1772815557460,4.38450365,84.69,84.643,0.5]
[1772815557782,0.42648471,84.698,84.643,0.5]
[1772815557970,4.38450365,84.69,84.643,0.5]
[1772815558478,41.32280191,84.699,84.643,0.5]
[1772815559264,4.38450365,84.7,84.645,0.5]
[1772815559781,4.38450365,84.69,84.645,0.5]
[1772815559980,4.38450365,84.7,84.645,0.5]
[1772815560583,4.38450365,84.7,84.631,3.69383402]
[1772815560584,4.38450365,84.66,84.621,0.5]
[1772815560883,4.38450365,84.67,84.621,0.5]
[1772815561279,41.33744345,84.669,84.623,0.5]
[1772815561885,0.28432314,84.703,84.624,0.14216157]
[1772815562183,4.38450365,84.69,84.627,0.5]
[1772815562386,4.38450365,84.69,84.629,0.5]
[1772815562580,4.38243994,84.69,84.629,0.5]
[1772815563285,4.38243994,84.68,84.631,0.5]
[1772815563996,41.32768127,84.689,84.631,0.28432314]
[1772815564162,41.32768127,84.689,84.632,0.5]
[1772815565492,41.32768127,84.689,84.634,0.5]
[1772815566064,41.32768127,84.689,84.635,0.14216157]
[1772815566065,11.80790893,84.689,84.635,0.14216157]
[1772815566268,11.80790893,84.689,84.636,0.5]
[1772815566882,11.80790893,84.689,84.637,0.14216157]
[1772815567091,11.80790893,84.689,84.633,100.43363697]
[1772815567092,11.80790893,84.689,84.638,0.5]
[1772815567294,29.51665958,84.698,84.641,0.5]
[1772815567595,4.38243994,84.69,84.641,0.5]
[1772815567791,0.42648471,84.697,84.641,0.5]
[1772815567966,4.38243994,84.69,84.641,0.5]
[1772815568172,11.80651483,84.699,84.641,0.5]
[1772815568368,41.32280191,84.699,84.641,0.5]
[1772815568786,4.38243994,84.69,84.641,0.5]
[1772815568987,41.32280191,84.699,84.641,0.5]
[1772815569503,29.51628708,84.699,84.643,0.5]
[1772815569670,11.80539978,84.707,84.645,0.5]
[1772815569870,1.89839994,84.708,84.649,0.5]
[1772815570180,4.38243994,84.75,84.661,0.5]
[1772815570181,11.80094171,84.739,84.661,0.5]
[1772815570424,11.80094171,84.739,84.665,0.5]
[1772815570571,11.80094171,84.739,84.669,0.5]
[1772815570877,11.80094171,84.739,84.678,0.14216157]
[1772815571191,41.30329599,84.739,84.679,0.5]
[1772815571488,4.38243994,84.73,84.681,0.5]
[1772815571882,0.42648471,84.738,84.681,0.5]
[1772815572605,4.38243994,84.73,84.681,0.5]
[1772815574093,0.1,84.74,84.683,0.5]
[1772815574303,0.1,84.74,84.686,0.5]
[1772815574501,11.80094171,84.739,84.688,0.5]
[1772815575102,0.1,84.74,84.688,0.5]
[1772815575413,11.90092473,84.74,84.688,0.5]
[1772815576004,0.1,84.74,84.688,0.5]
[1772815576208,0.1,84.74,84.694,0.5]
[1772815576511,41.29403713,84.758,84.698,0.5]
[1772815577710,0.1,84.76,84.701,0.14216157]
[1772815578009,0.1,84.76,84.718,0.5]
[1772815578193,0.1,84.76,84.69,12.09680322]
[1772815578194,0.1,84.76,84.721,0.5]
[1772815578594,0.02185353,84.759,84.721,0.5]
[1772815580311,0.02185353,84.759,84.723,0.5]
[1772815581814,0.1,84.76,84.723,0.5]
[1772815582110,0.02725623,84.759,84.723,0.5]
[1772815582311,0.02725623,84.759,84.717,11.80388857]
[1772815582519,0.02725623,84.749,84.711,12.30480868]
[1772815582913,0.02857052,84.739,84.704,0.5]
[1772815583093,0.02857052,84.739,84.671,1.18104191]
[1772815583094,0.02857052,84.729,84.693,15.44032537]
[1772815583714,0.02857052,84.729,84.694,0.5]
[1772815584215,0.02987238,84.719,84.693,3.63310392]
[1772815584414,0.02987238,84.718,84.693,3.60323154]
[1772815584803,41.31304665,84.719,84.693,3.60323154]
[1772815585306,41.31304665,84.719,84.668,0.51493619]
[1772815585307,4.38243994,84.71,84.668,0.51493619]
[1772815585709,0.42648471,84.709,84.668,0.51493619]
[1772815586295,11.80651483,84.699,84.668,0.51493619]
[1772815586505,11.80651483,84.699,84.67,0.51493619]
[1772815586700,53.1,84.763,84.67,0.51493619]
[1772815586701,3.69383402,84.731,84.67,0.51493619]
[1772815586899,12.22812277,84.734,84.67,0.51493619]
[1772815586900,4.38243994,84.73,84.67,0.51493619]
[1772815587118,11.80163806,84.734,84.671,0.51493619]
[1772815587624,41.30573322,84.734,84.671,0.51493619]
[1772815588323,0.14216157,84.733,84.671,0.51493619]
[1772815588510,0.14216157,84.733,84.672,41.33597882]
[1772815588716,0.14216157,84.733,84.673,0.51493619]
[1772815589122,10.94427692,84.73,84.673,0.51493619]
[1772815589513,0.14216157,84.733,84.673,0.51493619]
[1772815590804,0.14216157,84.733,84.674,41.33500247]
[1772815591006,0.14216157,84.733,84.675,0.51493619]
[1772815591212,29.50409516,84.734,84.677,0.51493619]
[1772815591411,11.80066319,84.741,84.679,0.51493619]
[1772815591921,10.94427692,84.74,84.679,0.51493619]
[1772815592619,10.94427692,84.73,84.679,0.51493619]
[1772815592954,41.30329599,84.739,84.682,0.51493619]
[1772815593124,10.94427692,84.72,84.682,0.51493619]
[1772815593505,0.14216157,84.728,84.682,0.51493619]
[1772815594202,0.42648471,84.738,84.682,0.51493619]
[1772815594409,10.94427692,84.73,84.682,0.51493619]
[1772815595425,0.28432314,84.736,84.684,0.51493619]
[1772815595732,0.42648471,84.736,84.684,0.51493619]
[1772815596124,11.80122024,84.737,84.684,0.51493619]
[1772815597034,41.30427085,84.737,84.684,0.51493619]
[1772815598330,41.30427085,84.737,84.674,0.28432314]
[1772815598331,10.94427692,84.73,84.686,0.51493619]
[1772815599820,10.94427692,84.73,84.688,0.51493619]
[1772815599821,0.0203281,84.728,84.688,0.51493619]
[1772815600227,11.80181645,84.733,84.688,0.51493619]
[1772815602033,0.0224687,84.739,84.69,0.51493619]
[1772815604041,0.02456063,84.728,84.692,0.51493619]
[1772815604228,41.30817075,84.729,84.674,0.28432314]
[1772815604229,0.02456063,84.718,84.679,0.51493619]
[1772815604540,0.14216157,84.719,84.675,0.51493619]
[1772815604541,0.02456063,84.709,84.675,0.51493619]
[1772815605336,0.02456063,84.709,84.67,11.81048797]
[1772815605537,0.02558972,84.708,84.67,11.81048797]
[1772815605744,0.02558972,84.708,84.667,0.51493619]
[1772815606125,0.45308288,84.707,84.668,11.81083762]
[1772815606433,0.45308288,84.707,84.667,0.51493619]
[1772815606434,0.02659817,84.699,84.659,12.32691208]
[1772815606636,0.42648471,84.699,84.66,0.51493619]
[1772815606826,0.02659817,84.698,84.66,12.32688988]
[1772815607841,3.69383402,84.697,84.639,12.34411872]
[1772815608144,0.42648471,84.689,84.64,0.52923433]
[1772815608323,10.94427692,84.69,84.643,0.52923433]
[1772815608324,41.25465398,84.688,84.643,0.52923433]
[1772815608639,10.94427692,84.68,84.643,0.52923433]
[1772815609937,41.25465398,84.688,84.643,0.52923433]
[1772815610322,41.25465398,84.688,84.645,0.52923433]
[1772815610843,11.80741267,84.693,84.646,0.52923433]
[1772815611044,29.51339972,84.708,84.648,0.52923433]
[1772815611346,29.51339972,84.708,84.652,0.52923433]
[1772815611546,11.80512106,84.709,84.652,0.52923433]
[1772815612046,41.31792371,84.709,84.652,0.52923433]
[1772815612422,41.31792371,84.709,84.655,0.52923433]
[1772815615348,41.31792371,84.709,84.657,0.52923433]
[1772815617035,59.00838186,84.734,84.657,0.52923433]
[1772815617036,29.50962146,84.719,84.659,0.52923433]
[1772815617237,11.80386694,84.718,84.666,0.52923433]
[1772815617431,11.80386694,84.718,84.672,0.52923433]
[1772815618950,10.94427692,84.71,84.672,0.52923433]
[1772815619331,41.31792371,84.709,84.673,11.81014018]
[1772815619528,41.31792371,84.709,84.672,0.52923433]
[1772815619732,41.31792371,84.709,84.662,29.52918664]
[1772815619733,41.31792371,84.709,84.674,0.52923433]
[1772815620542,41.31792371,84.709,84.63,47.2641515]
[1772815620543,10.94427692,84.7,84.652,0.52923433]
[1772815621339,41.32280191,84.699,84.654,0.52923433]
[1772815621532,10.94427692,84.69,84.654,0.52923433]
[1772815622055,41.32280191,84.699,84.588,47.28763053]
[1772815622056,10.94427692,84.67,84.62,0.52923433]
[1772815622256,10.94427692,84.67,84.621,0.52923433]
[1772815623358,10.94427692,84.67,84.623,0.52923433]
[1772815623359,41.33744345,84.669,84.623,0.52923433]
[1772815624251,0.42648471,84.668,84.623,0.52923433]
[1772815624450,11.81069813,84.669,84.623,0.52923433]
[1772815624646,11.81069813,84.669,84.624,0.52923433]
[1772815625053,41.33744345,84.669,84.624,0.52923433]
[1772815625447,41.33744345,84.669,84.626,0.52923433]
[1772815626361,11.81069813,84.669,84.626,0.52923433]
[1772815627450,10.95949129,84.66,84.628,0.52923433]
[1772815627648,0.42648471,84.679,84.628,0.52923433]
[1772815627964,10.95949129,84.67,84.628,0.52923433]
[1772815628454,4.38394935,84.68,84.628,0.52923433]
[1772815628762,11.80846667,84.685,84.632,0.52923433]
[1772815629137,0.02036786,84.697,84.634,0.52923433]
[1772815629138,11.80693303,84.696,84.634,0.52923433]
[1772815629547,11.80693303,84.696,84.638,0.14216157]
[1772815629753,11.80693303,84.696,84.641,0.52923433]
[1772815631543,11.80693303,84.696,84.644,0.52923433]
[1772815631953,29.51309126,84.709,84.646,0.52923433]
[1772815631954,11.80631642,84.701,84.646,0.52923433]
[1772815632454,11.80631642,84.701,84.652,0.52923433]
[1772815633662,0.02239072,84.714,84.657,0.52923433]
[1772815633966,29.53330506,84.718,84.661,0.52923433]
[1772815634162,0.02362584,84.717,84.661,0.52923433]
[1772815634556,11.82651754,84.725,84.667,0.52923433]
[1772815634749,0.02362584,84.724,84.671,0.52923433]
[1772815634958,0.0242324,84.719,84.671,0.52923433]
[1772815636176,0.02482595,84.718,84.673,0.52923433]
[1772815636552,11.80316138,84.724,84.674,0.52923433]
[1772815636757,0.02541826,84.723,84.674,0.52923433]
[1772815636965,0.02541826,84.719,84.674,0.52923433]
[1772815637451,0.02541826,84.723,84.674,0.52923433]
[1772815637850,11.80213669,84.731,84.676,0.52923433]
[1772815638058,11.80213669,84.731,84.678,0.52923433]
[1772815638372,10.95280133,84.73,84.681,0.52923433]
[1772815638750,0.02600421,84.731,84.681,0.52923433]
[1772815640068,0.02716529,84.709,84.681,0.52923433]
[1772815640368,0.02716529,84.729,84.683,0.52923433]
[1772815640559,0.02716529,84.729,84.683,0.81355747]
[1772815640752,22.75499653,84.73,84.684,0.52923433]
[1772815640753,11.8021952,84.73,84.684,0.52923433]
[1772815641967,0.02827709,84.729,84.684,0.52923433]
[1772815642270,0.02827709,84.729,84.667,0.28432314]
[1772815642271,0.02827709,84.719,84.686,0.52923433]
[1772815642769,0.02827709,84.719,84.626,4.82477569]
[1772815642770,0.02883085,84.709,84.669,0.52923433]
[1772815643071,10.95280133,84.7,84.669,0.52923433]
[1772815643373,0.02883085,84.699,84.671,0.52923433]
[1772815644154,0.02883085,84.699,84.654,0.52923433]
[1772815644349,0.0293706,84.698,84.656,0.52923433]
[1772815644977,0.0293706,84.698,84.655,41.34427971]
[1772815644978,0.02990443,84.689,84.655,11.81265134]
[1772815645493,0.02990443,84.689,84.656,0.52923433]
[1772815645865,11.83781336,84.689,84.657,11.81237227]
[1772815646174,0.03044702,84.688,84.656,0.52923433]
[1772815646373,0.03044702,84.688,84.657,0.52923433]
[1772815646583,11.80790893,84.689,84.657,0.52923433]
[1772815647253,0.03098321,84.688,84.657,0.52923433]
[1772815647862,0.03098321,84.688,84.652,11.81303759]
[1772815648281,0.03098321,84.688,84.653,0.52923433]
[1772815648588,0.03150557,84.688,84.653,0.52923433]
[1772815649980,0.03253275,84.679,84.628,0.52923433]
[1772815650673,10.98533408,84.67,84.628,0.52923433]
[1772815651176,0.03303707,84.669,84.628,0.52923433]
[1772815652165,0.03402638,84.668,84.63,0.52923433]
[1772815652588,4.38394649,84.69,84.632,0.52923433]
[1772815652882,0.03402638,84.692,84.632,0.52923433]
[1772815653460,0.03402638,84.692,84.636,0.52923433]
[1772815653772,0.03402638,84.692,84.631,0.14216157]
[1772815653773,41.32285398,84.699,84.642,0.52923433]
[1772815653980,11.80651483,84.699,84.652,0.52923433]
[1772815654280,11.80598314,84.703,84.655,0.52923433]
[1772815656756,11.80598314,84.703,84.656,11.81251181]
[1772815656757,0.03640746,84.689,84.656,11.81251181]
[1772815657080,0.03640746,84.689,84.652,11.81301467]
[1772815657661,10.98658617,84.68,84.648,12.3428416]
[1772815658273,10.98658617,84.68,84.623,3.69383402]
[1772815658274,0.03685949,84.669,84.623,0.52923433]
[1772815658780,11.81209322,84.659,84.625,0.52923433]
[1772815659259,41.34232627,84.659,84.625,0.52923433]
[1772815659464,0.03731389,84.658,84.625,0.52923433]
[1772815659665,0.03731389,84.658,84.624,11.81697863]
[1772815659978,0.03731389,84.658,84.576,47.294433]
[1772815659979,10.95017871,84.64,84.611,0.52923433]
[1772815660162,0.03776254,84.649,84.611,12.34802857]
[1772815660363,0.03776254,84.649,84.612,0.52923433]
[1772815660364,0.03776254,84.648,84.612,0.52923433]
[1772815660565,10.95017871,84.64,84.612,0.52923433]
[1772815660770,11.81488439,84.639,84.612,0.52923433]
[1772815660985,11.81488439,84.639,84.61,0.09971285]
[1772815661176,0.03820424,84.638,84.61,0.09971285]
[1772815661373,41.35209536,84.639,84.61,0.62894718]
[1772815661374,11.81488439,84.639,84.61,0.62894718]
[1772815661889,11.81488439,84.639,84.611,0.52923433]
[1772815662183,11.81488439,84.639,84.61,11.91863697]
[1772815662184,0.0386498,84.638,84.61,0.09971285]
[1772815662384,11.81488439,84.639,84.612,0.52923433]
[1772815662884,29.53375455,84.649,84.612,0.52923433]
[1772815662885,0.03909007,84.648,84.612,0.52923433]
[1772815663867,0.03951704,84.639,84.61,0.09971285]
[1772815665077,0.14216157,84.643,84.61,0.62894718]
[1772815665270,0.03993037,84.639,84.61,0.09971285]
[1772815665467,0.03993037,84.639,84.61,0.62894718]
[1772815665690,0.14216157,84.643,84.61,0.62894718]
[1772815666073,0.04034041,84.639,84.61,0.62894718]
[1772815666288,0.14216157,84.643,84.61,0.05937244]
[1772815666294,10.95017871,84.63,84.61,0.05937244]
[1772815666488,10.95017871,84.62,84.61,0.05937244]
[1772815666674,10.95017871,84.63,84.61,0.05937244]
[1772815667076,41.35698164,84.629,84.61,0.05937244]
[1772815667683,11.81628047,84.629,84.61,0.05937244]
[1772815668081,10.95017871,84.62,84.6,1e-08]
[1772815668796,10.95017871,84.61,84.6,1e-08]
[1772815668993,10.95017871,84.61,84.59,1e-08]
[1772815669194,41.36675767,84.609,84.59,1e-08]
[1772815669494,11.81781654,84.618,84.59,0.54940455]
[1772815670379,11.81642009,84.628,84.59,0.54940455]
[1772815671093,0.14216157,84.649,84.592,0.54940454]
[1772815671395,11.81265637,84.655,84.595,0.54940454]
[1772815671691,11.81320953,84.651,84.602,0.54940454]
[1772815673175,11.81320953,84.651,84.605,0.54940454]
[1772815675400,11.81320953,84.651,84.607,0.54940454]
[1772815677403,11.81320953,84.651,84.609,0.54940454]
[1772815678208,10.95017871,84.65,84.609,0.54940454]
[1772815678801,10.95017871,84.65,84.601,0.54940454]
[1772815679103,10.95017871,84.64,84.593,0.54940454]
[1772815679510,10.95017871,84.63,84.595,0.54940454]
[1772815679723,10.95017871,84.62,84.586,0.54940454]
[1772815679885,10.95017871,84.61,84.586,0.54940454]
[1772815680319,10.95017871,84.62,84.586,0.54940454]
[1772815680608,0.28432314,84.636,84.579,0.54940454]
[1772815680609,10.95017871,84.61,84.579,0.54940454]
[1772815681614,41.36675767,84.609,84.579,0.54940454]
[1772815681905,41.36675767,84.609,84.58,0.74940454]
[1772815682908,11.81753722,84.62,84.581,0.54940454]
[1772815683107,22.76771593,84.62,84.581,0.54940454]
[1772815683604,22.76771593,84.62,84.58,12.02302486]
[1772815683605,10.95017871,84.61,84.58,0.2]
[1772815684005,10.95017871,84.6,84.58,0.2]
[1772815684506,10.98092536,84.6,84.563,0.54940454]
[1772815684705,10.98092536,84.6,84.56,0.2]
[1772815684706,0.42648471,84.616,84.56,0.2]
[1772815684889,10.98092536,84.58,84.56,0.2]
[1772815685093,10.98092536,84.59,84.56,0.2]
[1772815685290,41.36138028,84.62,84.561,0.54940454]
[1772815685505,0.28432314,84.619,84.561,0.54940454]
[1772815685687,0.28432314,84.619,84.563,0.54940454]
[1772815685688,10.98092536,84.61,84.563,0.54940454]
[1772815686096,10.98092536,84.6,84.563,0.54940454]
[1772815686306,10.98092536,84.59,84.563,0.54940454]
[1772815686505,10.98092536,84.59,84.56,0.2]
[1772815686701,10.98092536,84.59,84.561,0.54940454]
[1772815686908,3.69383402,84.615,84.561,0.54940454]
[1772815686909,10.98092536,84.6,84.561,0.54940454]
[1772815687710,0.42648471,84.597,84.561,0.54940454]
[1772815687910,10.98092536,84.59,84.561,0.54940454]
[1772815688115,0.42648471,84.597,84.561,0.54940454]
[1772815688406,10.98092536,84.59,84.56,0.2]
[1772815688610,0.42648471,84.597,84.56,0.2]
[1772815688812,10.98092536,84.59,84.56,0.2]
[1772815689213,0.42648471,84.597,84.56,0.2]
[1772815689408,10.98092536,84.58,84.445,175.2519466]
[1772815689612,41.37213645,84.598,74.267,56.66820248]
[1772815689613,10.98092536,84.57,84.531,0.54940454]
[1772815689817,41.38632358,84.569,84.531,0.54940454]
[1772815690204,41.38632358,84.569,84.533,0.54940454]
[1772815692709,41.38632358,84.569,84.534,0.54940454]
[1772815692900,11.82466388,84.569,84.534,0.54940454]
[1772815693106,41.38632358,84.569,84.534,0.54940454]
[1772815693299,11.82466388,84.569,84.534,0.83372768]
[1772815693515,11.82411226,84.573,84.535,0.54940454]
[1772815694213,11.82411226,84.573,84.537,0.54940454]
[1772815697016,10.98092536,84.57,84.537,0.54940454]
[1772815697217,0.21217894,84.559,84.53,0.2]
[1772815697416,10.98092536,84.55,84.53,0.2]
[1772815698107,0.21262605,84.549,84.503,0.28432314]
[1772815698317,0.21262605,84.549,84.516,11.83203331]
[1772815699118,11.82760088,84.548,84.519,0.5003155]
[1772815699513,0.21307493,84.547,84.516,11.83203331]
[1772815699710,0.21352041,84.539,84.508,0.5003155]
[1772815700618,41.61012351,84.548,84.505,0.5003155]
[1772815700821,41.3966031,84.548,84.506,0.5003155]
[1772815701709,41.3966031,84.548,84.505,0.28432314]
[1772815701710,29.78339565,84.548,84.508,0.5003155]
[1772815701913,11.82676159,84.554,84.508,0.5003155]
[1772815702306,41.39366558,84.554,84.508,0.5003155]
[1772815703824,29.56373016,84.564,84.511,0.5003155]
[1772815704821,29.56373016,84.564,84.514,0.5003155]
[1772815705198,0.21565383,84.559,84.514,0.5003155]
[1772815706018,29.56373016,84.564,84.514,0.5003155]
[1772815706719,0.21606635,84.588,84.517,0.5003155]
[1772815706921,11.82388961,84.575,84.524,0.5003155]
[1772815707125,11.82410461,84.573,84.532,0.5003155]
[1772815707507,41.38436615,84.573,84.532,0.5003155]
[1772815708020,0.21688211,84.569,84.532,0.5003155]
[1772815709014,0.21728051,84.567,84.534,0.5003155]
[1772815711008,4.39478059,84.57,84.536,0.5003155]
[1772815711009,11.82508336,84.566,84.536,0.5003155]
[1772815711623,12.04352294,84.566,84.536,0.5003155]
[1772815711805,0.21843958,84.565,84.536,0.5003155]
[1772815712631,41.38779177,84.566,84.536,0.5003155]
[1772815712811,0.21920274,84.565,84.536,0.5003155]
[1772815713129,12.04456577,84.564,84.531,0.53707257]
[1772815713537,0.21920274,84.597,84.531,0.53707257]
[1772815713715,0.21920274,84.597,84.526,29.57667335]
[1772815713716,11.82088987,84.596,84.569,0.53707257]
[1772815714632,11.81977211,84.604,84.569,0.53707257]
[1772815715021,11.81977211,84.604,84.552,0.14216157]
[1772815715022,0.5274056,84.615,84.571,0.53707257]
[1772815715228,11.81767688,84.619,84.571,0.53707257]
[1772815715229,0.5274056,84.618,84.572,0.53707257]
[1772815716016,11.81767688,84.619,84.572,0.53707257]
[1772815716326,0.5274056,84.618,84.572,0.53707257]
[1772815716530,0.5274056,84.609,84.572,0.53707257]
[1772815717138,0.5274056,84.607,84.572,0.53707257]
[1772815717333,0.5274056,84.607,84.573,11.82410461]
[1772815717631,0.5274056,84.607,84.573,0.53707257]
[1772815719225,0.5274056,84.605,84.573,12.36105624]
[1772815719435,0.5274056,84.605,84.574,0.53707257]
[1772815719639,11.8183752,84.614,84.575,0.53707257]
[1772815720321,0.5274056,84.613,84.575,0.53707257]
[1772815720942,0.5274056,84.609,84.575,0.53707257]
[1772815721145,0.5274056,84.607,84.575,0.53707257]
[1772815721346,41.36724659,84.608,84.566,0.53707257]
[1772815721347,0.5274056,84.599,84.566,0.53707257]
[1772815721645,0.5274056,84.599,84.56,0.53707257]
[1772815722837,0.5274056,84.607,84.56,0.53707257]
[1772815724325,41.36822446,84.606,84.562,0.53707257]
[1772815725036,11.8194927,84.606,84.563,0.53707257]
[1772815726346,29.5457755,84.615,84.566,0.53707257]
[1772815726557,30.0731811,84.615,84.566,0.53707257]
[1772815728130,30.0731811,84.615,84.565,0.28432314]
[1772815728131,11.81809586,84.616,84.569,0.53707257]
[1772815728437,11.81809586,84.616,84.574,0.53707257]
[1772815728633,3.35759249,84.617,84.575,0.14216157]
[1772815728842,3.35759249,84.617,84.576,0.53707257]
[1772815729340,0.5274056,84.659,84.599,0.14216157]
[1772815729532,0.5274056,84.659,84.602,0.53707257]
[1772815729533,0.5274056,84.653,84.602,0.53707257]
[1772815730131,2.01455549,84.663,84.562,4.50751065]
[1772815730132,11.81167465,84.662,84.612,0.53707257]
[1772815730464,0.5274056,84.659,84.618,0.53707257]
[1772815731729,11.81195369,84.66,84.622,0.53707257]
[1772815732372,11.81195369,84.66,84.625,0.53707257]
[1772815733851,0.5274056,84.659,84.626,11.81669935]
[1772815734050,0.5274056,84.659,84.627,0.53707257]
[1772815734469,0.5274056,84.659,84.612,0.14216157]
[1772815734470,0.5274056,84.659,84.621,11.81735613]
[1772815734972,0.5274056,84.659,84.622,0.53707257]
[1772815735845,0.56235762,84.657,84.622,0.53707257]
[1772815736050,0.56235762,84.657,84.624,0.52513725]
[1772815736943,11.81251181,84.656,84.624,0.52513725]
[1772815737150,0.56235762,84.655,84.624,0.52513725]
[1772815738167,0.56235762,84.655,84.624,12.34199464]
[1772815738366,41.34379134,84.656,84.597,0.52513725]
[1772815738367,0.56235762,84.639,84.597,0.52513725]
[1772815739253,0.56235762,84.637,84.599,0.52513725]
[1772815739451,47.24819483,84.66,84.599,0.52513725]
[1772815739452,0.56235762,84.653,84.601,0.52513725]
[1772815739659,0.56235762,84.662,84.601,0.52513725]
[1772815740971,0.56235762,84.662,84.6,0.14216157]
[1772815740972,0.56235762,84.658,84.604,0.52513725]
[1772815741168,0.56235762,84.658,84.609,0.14216157]
[1772815741366,0.56235762,84.658,84.612,0.52513725]
[1772815742565,0.14216157,84.681,84.603,0.28432314]
[1772815742566,13.82614537,84.663,84.618,0.5636363]
[1772815742754,0.53119715,84.694,84.618,0.14216157]
[1772815742951,0.53119715,84.694,84.629,0.5636363]
[1772815743150,0.53119715,84.679,84.631,0.5636363]
[1772815743682,0.53119715,84.669,84.623,0.5636363]
[1772815744869,0.53119715,84.667,84.626,0.5636363]
[1772815745280,0.53119715,84.667,84.625,0.28432314]